fUST/lending_fUST_20250811
["ID","MTS","AMOUNT","RATE_DAILY","PERIOD"]
[378510083,1754890239799,-151.0,0.00022518,7]
[378510085,1754890239809,-151.0,0.00022518,7]
[378510087,1754890239821,-151.0,0.00022518,7]
[378510089,1754890239831,-151.0,0.00022518,7]
[378510113,1754890239843,-655.802857,0.00022518,7]
[378510116,1754890240085,-655.802857,0.00022518,7]
[378510118,1754890240098,-151.0,0.00022518,7]
[378510120,1754890240107,-152.634385,0.00022518,7]
[378510122,1754890240117,-151.0,0.00022518,7]
[378510124,1754890240126,-151.0,0.00022518,7]
[378510126,1754890240135,-151.97109,0.00022518,7]
[378510128,1754890240144,-151.0,0.00022518,7]
[378510130,1754890240153,-151.0,0.00022518,7]
[378510132,1754890240163,-151.0,0.00022518,7]
[378510134,1754890240172,-408.400801,0.00022518,7]
[378510136,1754890240182,-408.400801,0.00022518,7]
[378510138,1754890240191,-221.747255,0.00022518,7]
[378510140,1754890240201,-221.747255,0.00022518,7]
[378510142,1754890240211,-151.0,0.00022518,7]
[378510144,1754890240220,-151.0,0.00022518,7]
[378510146,1754890240230,-405.486746,0.00022518,7]
[378510148,1754890240239,-405.486746,0.00022518,7]
[378510150,1754890240249,-151.0,0.00022518,7]
[378510152,1754890240258,-151.0,0.00022518,7]
[378510154,1754890240267,-872.247139,0.00022518,7]
[378510156,1754890240277,-181.599893,0.00022518,7]
[378510158,1754890240286,-181.599893,0.00022518,7]
[378510160,1754890240295,-151.0,0.00022518,7]
[378510162,1754890240304,-160.805127,0.00022518,7]
[378510164,1754890240313,-151.0,0.00022518,7]
[378510166,1754890240322,-151.0,0.00022518,7]
[378510168,1754890240332,-151.0,0.00022518,7]
[378510170,1754890240341,-151.0,0.00022518,7]
[378510172,1754890240351,-192.600626,0.00022518,7]
[378510174,1754890240360,-192.600626,0.00022518,7]
[378510176,1754890240369,-151.0,0.00022518,7]
[378510178,1754890240379,-151.0,0.00022518,7]
[378510180,1754890240388,-649.08122569,0.00022518,2]
[378510181,1754890240397,-151.0,0.00022518,7]
[378510183,1754890240406,-151.0,0.00022518,7]
[378510185,1754890240415,-644.28622,0.00022518,7]
[378510187,1754890240425,-644.28622,0.00022518,7]
[378510189,1754890240434,-151.0,0.00022518,7]
[378510191,1754890240443,-417.15472785,0.00022518,7]
[378510193,1754890240452,-12671.21867243,0.00022518,7]
[378510195,1754890240461,-215.4905783,0.00022518,7]
[378510197,1754890240471,-461.69158338,0.00022518,7]
[378510199,1754890240480,-160.0,0.00022518,7]
[378510201,1754890240490,-527.9539256,0.00022518,7]
[378510203,1754890240499,-152.04038189,0.0002252,2]
[378510205,1754890240508,-500.0,0.00022573,2]
[378510207,1754890240518,-500.0,0.00022573,2]
[378510209,1754890240527,-500.0,0.00022573,2]
[378510212,1754890240537,-500.0,0.00022573,2]
[378510213,1754890240546,-500.0,0.00022573,2]
[378510215,1754890240555,-500.0,0.00022573,2]
[378510217,1754890240564,-500.0,0.00022573,2]
[378510219,1754890240573,-500.0,0.00022573,2]
[378510221,1754890240582,-500.0,0.00022573,2]
[378510223,1754890240592,-500.0,0.00022573,2]
[378510225,1754890240601,-1055.64,0.00022588,2]
[378510227,1754890240610,-9247.31,0.000226,7]
[378510229,1754890240619,-66206.06,0.000226,7]
[378510231,1754890240628,-283.708424,0.000226,7]
[378510233,1754890240637,-283.708424,0.000226,7]
[378510235,1754890240646,-417.15472785,0.000226,7]
[378510237,1754890240657,-12671.21867243,0.000226,7]
[378510239,1754890240667,-215.4905783,0.000226,7]
[378510241,1754890240676,-461.69158338,0.000226,7]
[378510243,1754890240685,-160.0,0.000226,7]
[378510245,1754890240694,-527.9539256,0.000226,7]
[378510247,1754890240705,-635.1,0.00022659,2]
[378510249,1754890240714,-168.0,0.00022688,2]
[378510251,1754890240724,-872.247139,0.00022692,7]
[378510253,1754890240737,-151.0,0.00022692,7]
[378510255,1754890240746,-151.0,0.00022694,7]
[378510257,1754890240756,-151.0,0.00022694,7]
[378510259,1754890240765,-273.2436192,0.00022696,2]
[378510261,1754890240774,-2000.0,0.00022698,2]
[378510263,1754890240783,-18028.99,0.000227,7]
[378510265,1754890240792,-203.0,0.00022712,8]
[378510267,1754890240802,-408.400801,0.00022739,7]
[378510269,1754890240811,-408.400801,0.00022739,7]
[378510271,1754890240821,-3000.0,0.00022744,2]
[378510273,1754890240831,-200.0,0.00022784,15]
[378510275,1754890240840,-200.0,0.00022784,15]
[378510277,1754890240849,-200.0,0.00022784,15]
[378510279,1754890240858,-200.0,0.00022784,15]
[378510281,1754890240868,-200.0,0.00022784,15]
[378510283,1754890240878,-200.0,0.00022784,15]
[378510285,1754890240887,-200.0,0.00022784,15]
[378510287,1754890240897,-151.0,0.000228,9]
[378510289,1754890240906,-407.872319,0.000228,2]
[378510291,1754890240916,-4000.0,0.00022886,2]
[378510293,1754890240925,-644.28622,0.00022925,7]
[378510295,1754890240935,-644.28622,0.00022925,7]
[378510297,1754890240945,-151.0,0.00022925,7]
[378510299,1754890240954,-151.0,0.00022926,7]
[378510301,1754890240964,-166.211836,0.00022934,7]
[378510303,1754890240973,-2500.0,0.00022937,2]
[378510305,1754890240982,-5000.0,0.00022942,2]
[378510307,1754890240991,-151.0,0.00022962,7]
[378510309,1754890241000,-151.0,0.00022962,7]
[378510311,1754890241009,-151.0,0.00022962,7]
[378510313,1754890241018,-181.599893,0.00022965,7]
[378510315,1754890241027,-181.599893,0.00022965,7]
[378510317,1754890241037,-151.0,0.00022965,7]
[378510319,1754890241046,-500.0,0.00022973,2]
[378510321,1754890241056,-635.1,0.00022979,2]
[378510323,1754890241066,-1366.01223507,0.00023,2]
[378510325,1754890241075,-5045.44332936,0.00023,2]
[378510327,1754890241093,-1340.68309606,0.00023,2]
[378510329,1754890241112,-151.724719,0.00023,7]
[378510331,1754890241121,-24793.97355447,0.00023,2]
[378510333,1754890241131,-221.747255,0.00023,7]
[378510335,1754890241140,-221.747255,0.00023,7]
[378510337,1754890241149,-151.0,0.00023,7]
[378510339,1754890241158,-151.0,0.00023,7]
[378510341,1754890241167,-405.486746,0.00023,7]
[378510343,1754890241176,-405.486746,0.00023,7]
[378510345,1754890241186,-151.0,0.00023,7]
[378510347,1754890241195,-151.0,0.00023,7]
[378510349,1754890241204,-151.0,0.00023,7]
[378510351,1754890241215,-157.970121,0.00023,7]
[378510353,1754890241224,-41977.69,0.00023,2]
[378510355,1754890241233,-151.0,0.00023,7]
[378510357,1754890241243,-160.0,0.00023,2]
[378510359,1754890241252,-151.0,0.00023,7]
[378510361,1754890241261,-151.0,0.00023,7]
[378510363,1754890241271,-151.0,0.00023,7]
[378510365,1754890241280,-283.708424,0.00023,7]
[378510367,1754890241289,-283.708424,0.00023,7]
[378510369,1754890241299,-151.0,0.00023,7]
[378510371,1754890241308,-278.941149,0.00023,7]
[378510373,1754890241318,-756.157282,0.00023,7]
[378510375,1754890241327,-367.613199,0.00023,7]
[378510377,1754890241337,-756.157282,0.00023,7]
[378510379,1754890241346,-367.613199,0.00023,7]
[378510381,1754890241355,-151.0,0.00023,7]
[378510383,1754890241364,-197.957635,0.00023,7]
[378510385,1754890241373,-151.0,0.00023,7]
[378510387,1754890241383,-197.957635,0.00023,7]
[378510389,1754890241392,-151.0,0.00023,7]
[378510391,1754890241401,-151.0,0.00023,7]
[378510393,1754890241411,-152.920295,0.00023,7]
[378510395,1754890241420,-153.400648,0.00023,7]
[378510397,1754890241429,-290.218247,0.00023012,7]
[378510399,1754890241439,-151.0,0.00023012,7]
[378510401,1754890241448,-151.0,0.00023012,7]
[378510403,1754890241457,-151.0,0.00023012,7]
[378510405,1754890241467,-192.600626,0.00023012,7]
[378510407,1754890241475,-192.600626,0.00023012,7]
[378510409,1754890241485,-151.0,0.00023012,7]
[378510411,1754890241494,-256.804595,0.00023012,7]
[378510413,1754890241503,-246.0,0.00023014,7]
[378510415,1754890241512,-160.0,0.00023022,2]
[378510417,1754890241522,-10000.0,0.0002304,2]
[378510419,1754890241531,-407.872319,0.0002304,15]
[378510421,1754890241542,-407.872319,0.00023049,3]
[378510423,1754890241551,-7000.0,0.00023086,2]
[378510425,1754890241560,-151.0,0.00023086,7]
[378510427,1754890241569,-151.0,0.00023086,7]
[378510429,1754890241579,-151.0,0.00023086,7]
[378510431,1754890241588,-11869.05906486,0.000231,5]
[378510433,1754890241598,-209.829137,0.000231,7]
[378510435,1754890241607,-151.0,0.000231,7]
[378510437,1754890241616,-461.073429,0.000231,7]
[378510439,1754890241625,-461.073429,0.000231,7]
[378510441,1754890241635,-151.0,0.000231,7]
[378510443,1754890241645,-151.0,0.000231,7]
[378510446,1754890241655,-655.802857,0.000231,7]
[378510448,1754890241668,-655.802857,0.000231,7]
[378510450,1754890241677,-151.0,0.000231,7]
[378510452,1754890241686,-151.0,0.000231,7]
[378510454,1754890241696,-151.282229,0.000231,7]
[378510456,1754890241707,-151.0,0.000231,7]
[378510458,1754890241716,-644.28622,0.000231,7]
[378510460,1754890241724,-644.28622,0.000231,7]
[378510462,1754890241735,-283.708424,0.000231,7]
[378510464,1754890241744,-283.708424,0.000231,7]
[378510466,1754890241754,-151.0,0.000231,7]
[378510468,1754890241763,-151.0,0.000231,7]
[378510470,1754890241772,-151.0,0.000231,10]
[378510471,1754890241781,-1000.0,0.00023121,2]
[378510473,1754890241791,-501.33316,0.00023121,2]
[378510476,1754890241800,-1000.0,0.00023121,2]
[378510478,1754890241809,-500.0,0.00023121,2]
[378510479,1754890241819,-1000.0,0.00023121,2]
[378510481,1754890241828,-872.247139,0.00023121,7]
[378510483,1754890241837,-181.599893,0.00023121,7]
[378510485,1754890241847,-181.599893,0.00023121,7]
[378510487,1754890241856,-151.0,0.00023121,7]
[378510489,1754890241865,-151.861524,0.00023121,7]
[378510491,1754890241875,-197.957635,0.00023127,7]
[378510493,1754890241884,-151.0,0.00023127,7]
[378510495,1754890241894,-197.957635,0.00023127,7]
[378510497,1754890241904,-151.0,0.00023127,7]
[378510499,1754890241913,-2151.0,0.00023127,2]
[378510501,1754890241922,-636.0,0.00023127,2]
[378510503,1754890241935,-971.0,0.00023127,2]
[378510505,1754890241944,-408.0,0.00023127,2]
[378510507,1754890241953,-416.844,0.00023127,2]
[378510509,1754890241963,-206.234,0.00023137,2]
[378510511,1754890241972,-220.454,0.00023137,2]
[378510513,1754890241982,-250.0,0.00023137,2]
[378510515,1754890241991,-261.02,0.00023137,2]
[378510517,1754890242000,-219.814,0.00023137,2]
[378510519,1754890242009,-151.0,0.0002314,7]
[378510521,1754890242019,-151.0,0.0002314,7]
[378510523,1754890242028,-151.0,0.0002314,7]
[378510525,1754890242037,-151.0,0.0002314,7]
[378510527,1754890242046,-155.745708,0.0002314,7]
[378510529,1754890242055,-408.400801,0.0002314,7]
[378510531,1754890242064,-408.400801,0.0002314,7]
[378510533,1754890242074,-151.0,0.00023166,7]
[378510535,1754890242083,-8000.0,0.00023187,2]
[378510537,1754890242092,-151.0,0.000232,7]
[378510539,1754890242101,-151.0,0.000232,7]
[378510541,1754890242110,-151.0,0.000232,7]
[378510543,1754890242119,-159.831988,0.000232,7]
[378510545,1754890242129,-151.0,0.000232,7]
[378510547,1754890242139,-151.0,0.000232,7]
[378510549,1754890242148,-152.756043,0.000232,7]
[378510551,1754890242157,-151.0,0.000232,7]
[378510553,1754890242166,-408.400801,0.000232,7]
[378510555,1754890242175,-408.400801,0.000232,7]
[378510557,1754890242185,-221.747255,0.000232,7]
[378510559,1754890242195,-221.747255,0.000232,7]
[378510561,1754890242206,-151.0,0.000232,7]
[378510563,1754890242215,-151.0,0.000232,7]
[378510565,1754890242224,-405.486746,0.000232,7]
[378510567,1754890242235,-405.486746,0.000232,7]
[378510569,1754890242244,-151.0,0.000232,7]
[378510571,1754890242254,-151.0,0.000232,7]
[378510573,1754890242263,-872.247139,0.000232,7]
[378510575,1754890242272,-181.599893,0.000232,7]
[378510577,1754890242281,-181.599893,0.000232,7]
[378510579,1754890242291,-240.972281,0.000232,7]
[378510581,1754890242300,-151.0,0.000232,7]
[378510583,1754890242309,-151.0,0.000232,7]
[378510585,1754890242318,-192.600626,0.000232,7]
[378510587,1754890242327,-192.600626,0.000232,7]
[378510589,1754890242337,-151.0,0.000232,7]
[378510591,1754890242346,-151.0,0.000232,7]
[378510593,1754890242355,-151.93656,0.000232,7]
[378510595,1754890242365,-644.28622,0.000232,7]
[378510597,1754890242374,-644.28622,0.000232,7]
[378510599,1754890242383,-151.0,0.000232,7]
[378510601,1754890242393,-151.0,0.000232,7]
[378510603,1754890242402,-151.0,0.000232,7]
[378510605,1754890242412,-151.0,0.000232,7]
[378510607,1754890242421,-151.0,0.000232,7]
[378510609,1754890242430,-151.0,0.000232,7]
[378510611,1754890242439,-151.0,0.000232,7]
[378510613,1754890242449,-756.157282,0.000232,7]
[378510615,1754890242458,-367.613199,0.000232,7]
[378510617,1754890242468,-756.157282,0.000232,7]
[378510619,1754890242477,-367.613199,0.000232,7]
[378510621,1754890242487,-151.0,0.000232,5]
[378510623,1754890242496,-151.0,0.000232,5]
[378510625,1754890242505,-644.28622,0.00023236,7]
[378510628,1754890242515,-644.28622,0.00023236,7]
[378510629,1754890242524,-196.392852,0.00023236,7]
[378510632,1754890242534,-151.0,0.00023239,7]
[378510633,1754890242543,-151.0,0.0002324,7]
[378510636,1754890242552,-461.073429,0.0002324,7]
[378510637,1754890242562,-461.073429,0.0002324,7]
[378510639,1754890242571,-655.802857,0.0002324,7]
[378510642,1754890242580,-655.802857,0.0002324,7]
[378510644,1754890242590,-151.0,0.0002324,7]
[378510645,1754890242599,-216.473572,0.0002324,7]
[378510647,1754890242609,-192.600626,0.0002324,7]
[378510649,1754890242618,-192.600626,0.0002324,7]
[378510651,1754890242627,-151.0,0.0002324,7]
[378510654,1754890242638,-187.012863,0.0002324,7]
[378510656,1754890242647,-151.0,0.0002324,7]
[378510657,1754890242657,-151.0,0.0002324,7]
[378510659,1754890242668,-8000.0,0.00023242,2]
[378510662,1754890242678,-500.0,0.00023273,2]
[378510664,1754890242687,-500.0,0.00023273,2]
[378510666,1754890242696,-500.0,0.00023273,2]
[378510669,1754890242706,-509.5504893,0.00023273,2]
[378510671,1754890242715,-500.0,0.00023273,2]
[378510673,1754890242725,-500.0,0.00023273,2]
[378510675,1754890242736,-500.24729121,0.00023273,2]
[378510676,1754890242745,-535.9525052,0.00023273,2]
[378510678,1754890242755,-500.0,0.00023273,2]
[378510681,1754890242764,-500.0,0.00023273,2]
[378510683,1754890242774,-500.0,0.00023273,2]
[378510685,1754890242783,-500.0,0.00023273,2]
[378510686,1754890242792,-150.0,0.00023273,2]
[378510689,1754890242802,-500.0,0.00023273,2]
[378510692,1754890242811,-158.46341349,0.00023273,2]
[378510695,1754890242821,-158.4611667,0.00023273,2]
[378510697,1754890242830,-158.46401038,0.00023273,2]
[378510699,1754890242840,-500.0,0.00023273,2]
[378510702,1754890242849,-500.0,0.00023273,2]
[378510705,1754890242858,-248.49009127,0.00023273,2]
[378510708,1754890242869,-500.0,0.00023273,2]
[378510710,1754890242878,-500.0,0.00023273,2]
[378510712,1754890242887,-500.0,0.00023273,2]
[378510715,1754890242897,-500.0,0.00023273,2]
[378510717,1754890242907,-501.39986974,0.00023273,2]
[378510719,1754890242916,-500.0,0.00023273,2]
[378510721,1754890242926,-501.71607261,0.00023273,2]
[378510723,1754890242935,-500.0,0.00023273,2]
[378510725,1754890242945,-500.0,0.00023273,2]
[378510727,1754890242954,-500.0,0.00023273,2]
[378510729,1754890242965,-500.0,0.00023273,2]
[378510731,1754890242975,-500.0,0.00023273,2]
[378510733,1754890242985,-500.78623683,0.00023273,2]
[378510735,1754890242994,-500.0,0.00023273,2]
[378510737,1754890243003,-500.0,0.00023273,2]
[378510739,1754890243014,-500.0,0.00023273,2]
[378510741,1754890243024,-500.49069383,0.00023273,2]
[378510743,1754890243033,-500.0,0.00023273,2]
[378510745,1754890243042,-283.708424,0.00023273,7]
[378510747,1754890243051,-283.708424,0.00023273,7]
[378510749,1754890243061,-151.0,0.00023273,7]
[378510751,1754890243070,-151.0,0.00023286,7]
[378510753,1754890243080,-151.0,0.00023286,7]
[378510755,1754890243089,-152.468289,0.00023286,7]
[378510757,1754890243099,-151.0,0.00023286,7]
[378510759,1754890243109,-221.747255,0.00023286,7]
[378510761,1754890243118,-221.747255,0.00023286,7]
[378510763,1754890243127,-235.516687,0.00023286,7]
[378510765,1754890243137,-151.0,0.00023286,7]
[378510767,1754890243146,-405.486746,0.00023286,7]
[378510769,1754890243156,-405.486746,0.00023286,7]
[378510771,1754890243165,-151.0,0.00023286,7]
[378510773,1754890243175,-151.0,0.00023288,7]
[378510775,1754890243184,-151.0,0.00023299,7]
[378510777,1754890243194,-151.0,0.00023299,7]
[378510779,1754890243203,-165.319598,0.00023299,7]
[378510781,1754890243213,-756.157282,0.00023299,7]
[378510783,1754890243222,-367.613199,0.00023299,7]
[378510785,1754890243232,-756.157282,0.00023299,7]
[378510787,1754890243244,-367.613199,0.00023299,7]
[378510789,1754890243253,-500.0,0.00023299,2]
[378510791,1754890243262,-1794.94369785,0.00023299,2]
[378510793,1754890243272,-247.25528299,0.00023299,2]
[378510795,1754890243281,-1794.94369785,0.00023299,2]
[378510797,1754890243291,-1794.94369785,0.00023299,2]
[378510799,1754890243308,-1794.94369785,0.00023299,2]
[378510801,1754890243321,-1794.94369785,0.00023299,2]
[378510803,1754890243330,-1794.94369785,0.00023299,2]
[378510805,1754890243340,-1794.94369785,0.00023299,2]
[378510821,1754890243489,-1794.94369785,0.00023299,2]
[378510822,1754890243503,-1794.94369785,0.00023299,2]
[378510823,1754890243512,-1794.94369785,0.00023299,2]
[378510825,1754890243522,-1794.94369785,0.00023299,2]
[378510826,1754890243531,-1794.94369785,0.00023299,2]
[378510827,1754890243540,-1794.94369785,0.00023299,2]
[378510829,1754890243549,-1794.94369785,0.00023299,2]
[378510831,1754890243559,-1794.94369785,0.00023299,2]
[378510832,1754890243568,-2090.24233287,0.00023299,2]
[378510833,1754890243577,-2090.24233287,0.00023299,2]
[378510835,1754890243586,-2090.24233287,0.00023299,2]
[378510837,1754890243596,-2090.24233287,0.00023299,2]
[378510839,1754890243605,-2090.24233287,0.00023299,2]
[378510841,1754890243614,-2090.24233287,0.00023299,2]
[378510843,1754890243623,-2090.24233287,0.00023299,2]
[378510844,1754890243632,-2090.24233287,0.00023299,2]
[378510845,1754890243642,-2090.24233287,0.00023299,2]
[378510846,1754890243652,-2267.80055256,0.00023299,2]
[378510848,1754890243661,-2267.80055256,0.00023299,2]
[378510850,1754890243672,-40386.45301719,0.000233,2]
[378510857,1754890243729,-11931.07192188,0.000233,2]
[378510870,1754890243851,460.0,0.00031301,30]
[378510880,1754890243934,460.0,0.00031301,30]
[378510887,1754890244001,460.0,0.00031301,30]
[378510895,1754890244064,460.0,0.00031301,30]
[378510902,1754890244125,460.0,0.00031301,30]
[378510910,1754890244185,460.0,0.00031301,30]
[378510917,1754890244252,460.0,0.00031301,30]
[378510924,1754890244310,460.0,0.00031301,30]
[378510950,1754890244537,195.24928394,0.00031301,30]
[378511120,1754890246475,460.0,0.00031301,30]
[378511146,1754890246727,460.0,0.00031301,30]
[378511172,1754890246983,460.0,0.00031301,30]
[378511179,1754890247045,-8719.99999999,0.00022517,2]
[378511200,1754890247247,460.0,0.00031301,30]
[378511228,1754890247501,460.0,0.00031301,30]
[378511256,1754890247766,460.0,0.00031301,30]
[378511283,1754890248018,460.0,0.00031301,30]
[378511310,1754890248272,460.0,0.00031301,30]
[378511336,1754890248505,460.0,0.00031301,30]
[378511356,1754890248780,412.33,0.00031301,30]
[378511826,1754890253366,460.0,0.00031301,30]
[378511845,1754890253540,460.0,0.00031301,30]
[378511860,1754890253674,460.0,0.00031301,30]
[378511904,1754890254091,460.0,0.00031301,30]
[378511923,1754890254260,460.0,0.00031301,30]
[378511962,1754890254643,460.0,0.00031301,30]
[378511993,1754890254953,460.0,0.00031301,30]
[378512025,1754890255615,460.0,0.00031301,30]
[378512033,1754890255699,460.0,0.00031301,30]
[378512097,1754890256332,460.0,0.00031301,30]
[378512203,1754890257359,460.0,0.00031301,30]
[378512245,1754890257908,460.0,0.00031301,30]
[378512306,1754890258502,460.0,0.00031301,30]
[378512364,1754890259049,460.0,0.00031301,30]
[378512403,1754890259411,460.0,0.00031301,30]
[378512671,1754890261950,460.0,0.00031301,30]
[378512890,1754890264206,460.0,0.00031301,30]
[378512891,1754890264442,460.0,0.00031301,30]
[378512914,1754890264740,460.0,0.00031301,30]
[378512941,1754890264998,460.0,0.00031301,30]
[378512967,1754890265236,460.0,0.00031301,30]
[378512992,1754890265491,230.5,0.00031301,30]
[378513113,1754890266664,412.14,0.00031301,30]
[378513142,1754890267056,5000.0,0.00019178,2]
[378513491,1754890270415,460.0,0.00031301,30]
[378513653,1754890272547,460.0,0.00031301,30]
[378513662,1754890273809,460.0,0.00031301,30]
[378513664,1754890274087,460.0,0.00031301,30]
[378513680,1754890274337,460.0,0.00031301,30]
[378513708,1754890274596,460.0,0.00031301,30]
[378513722,1754890274832,460.0,0.00031301,30]
[378513747,1754890275069,460.0,0.00031301,30]
[378513771,1754890275300,460.0,0.00031301,30]
[378513812,1754890275723,460.0,0.00031301,30]
[378513816,1754890275969,460.0,0.00031301,30]
[378513817,1754890276222,460.0,0.00031301,30]
[378513838,1754890276468,460.0,0.00031301,30]
[378513864,1754890276711,460.0,0.00031301,30]
[378513890,1754890276957,250.98,0.00031301,30]
[378513984,1754890279820,460.0,0.00031301,30]
[378513986,1754890280062,460.0,0.00031301,30]
[378513987,1754890280132,460.0,0.00031301,30]
[378513990,1754890280341,460.0,0.00031301,30]
[378513992,1754890280408,460.0,0.00031301,30]
[378513994,1754890280586,460.0,0.00031301,30]
[378513996,1754890280656,460.0,0.00031301,30]
[378513998,1754890280835,460.0,0.00031301,30]
[378514000,1754890280905,460.0,0.00031301,30]
[378514003,1754890281078,460.0,0.00031301,30]
[378514005,1754890281149,294.39,0.00031301,30]
[378514006,1754890281312,511.18,0.00031301,30]
[378514057,1754890284728,460.0,0.00031301,30]
[378514062,1754890285314,460.0,0.00031301,30]
[378514064,1754890285600,460.0,0.00031301,30]
[378514075,1754890287478,460.0,0.00031301,30]
[378514077,1754890287721,460.0,0.00031301,30]
[378514098,1754890292090,460.0,0.00031301,30]
[378514105,1754890293996,460.0,0.00031301,30]
[378514107,1754890294238,460.0,0.00031301,30]
[378514109,1754890294489,460.0,0.00031301,30]
[378514111,1754890294759,460.0,0.00031301,30]
[378514113,1754890295005,460.0,0.00031301,30]
[378514116,1754890295235,460.0,0.00031301,30]
[378514125,1754890296202,460.0,0.00031301,30]
[378514126,1754890296274,460.0,0.00031301,30]
[378514129,1754890296474,460.0,0.00031301,30]
[378514131,1754890296549,460.0,0.00031301,30]
[378514133,1754890296718,460.0,0.00031301,30]
[378514137,1754890296967,460.0,0.00031301,30]
[378514140,1754890297237,460.0,0.00031301,30]
[378514144,1754890297491,460.0,0.00031301,30]
[378514148,1754890297790,460.0,0.00031301,30]
[378514152,1754890298038,460.0,0.00031301,30]
[378514155,1754890298317,460.0,0.00031301,30]
[378514156,1754890298558,460.0,0.00031301,30]
[378514159,1754890298804,460.0,0.00031301,30]
[378514162,1754890299051,460.0,0.00031301,30]
[378514164,1754890299283,305.78,0.00031301,30]
[378514177,1754890300961,460.0,0.00031301,30]
[378514179,1754890301204,460.0,0.00031301,30]
[378514183,1754890301793,460.0,0.00031301,30]
[378514188,1754890302072,460.0,0.00031301,30]
[378514191,1754890302328,460.0,0.00031301,30]
[378514193,1754890302594,460.0,0.00031301,30]
[378514197,1754890303035,546.13,0.00031301,30]
[378514198,1754890303111,460.0,0.00031301,30]
[378514201,1754890303332,460.0,0.00031301,30]
[378514207,1754890303853,460.0,0.00031301,30]
[378514209,1754890304155,460.0,0.00031301,30]
[378514210,1754890304390,349.05198786,0.00031301,30]
[378514244,1754890307974,460.0,0.00031301,30]
[378514246,1754890308042,460.0,0.00031301,30]
[378514249,1754890308247,460.0,0.00031301,30]
[378514250,1754890308313,460.0,0.00031301,30]
[378514252,1754890308477,460.0,0.00031301,30]
[378514254,1754890308546,460.0,0.00031301,30]
[378514257,1754890308735,448.56,0.00031301,30]
[378514278,1754890311527,460.0,0.00031301,30]
[378514280,1754890311783,460.0,0.00031301,30]
[378514283,1754890312050,460.0,0.00031301,30]
[378514318,1754890317366,460.0,0.00031301,30]
[378514332,1754890319643,179.11222732,0.00031301,30]
[378514344,1754890321206,460.0,0.00031301,30]
[378514346,1754890321449,460.0,0.00031301,30]
[378514350,1754890321709,460.0,0.00031301,30]
[378514351,1754890321796,194.66,0.00031301,30]
[378514354,1754890321969,460.0,0.00031301,30]
[378514360,1754890323071,460.0,0.00031301,30]
[378514363,1754890323331,460.0,0.00031301,30]
[378514369,1754890324131,460.0,0.00031301,30]
[378514371,1754890324380,460.0,0.00031301,30]
[378514374,1754890324545,460.0,0.00031301,30]